bitfinex/quotes_BTCUSD_20260103
["timestamp","ask_amount","ask_price","bid_price","bid_amount"]
[1767458352783,0.05550067,90089.0,90087.0,0.00058552]
[1767458353126,0.01110001,90090.0,90087.0,0.00058552]
[1767458354272,0.05549935,90092.0,90090.0,0.000999]
[1767458354466,0.01109988,90091.0,90088.0,0.01110025]
[1767458355438,0.01109976,90092.0,90091.0,0.000999]
[1767458355637,0.01109988,90091.0,90088.0,0.01110025]
[1767458356249,0.01109976,90092.0,90089.0,0.01110013]
[1767458356455,0.01109976,90092.0,90091.0,0.000999]
[1767458356722,0.01109976,90092.0,90089.0,0.01110013]
[1767458358375,0.01109988,90091.0,90088.0,0.01110025]
[1767458359313,0.01109976,90092.0,90088.0,0.01110025]
[1767458360377,0.01109988,90091.0,90088.0,0.01110025]
[1767458361767,0.00709988,90091.0,90088.0,0.01110025]
[1767458362639,0.00709988,90091.0,90087.0,0.06660167]
[1767458362843,0.00709988,90091.0,90088.0,0.01110025]
[1767458363257,0.01109976,90092.0,90089.0,0.01110013]
[1767458363555,0.01109976,90092.0,90088.0,0.01110025]
[1767458369505,0.01109988,90091.0,90088.0,0.01110025]
[1767458369671,0.06369884,90092.0,90088.0,0.01110025]
[1767458370716,0.05682832,90091.0,90087.0,0.02770192]
[1767458370917,0.01109988,90091.0,90088.0,0.01110025]
[1767458372609,0.01110001,90090.0,90086.0,0.00873497]
[1767458373156,0.01110013,90089.0,90086.0,0.04570856]
[1767458373358,0.01110025,90088.0,90085.0,0.0222]
[1767458373498,0.01110025,90088.0,90086.0,0.04570856]
[1767458373700,0.01110025,90088.0,90085.0,0.0222]
[1767458375194,0.06660195,90088.0,90085.0,0.0222]
[1767458376425,0.06660195,90088.0,90085.0,0.06790856]
[1767458376629,0.06660128,90089.0,90085.0,0.13451225]
[1767458376851,0.01110001,90090.0,90086.0,0.0111005]
[1767458377207,0.01109988,90091.0,90086.0,0.0111005]
[1767458377858,0.01110001,90090.0,90086.0,0.0111005]
[1767458378063,0.01110001,90090.0,90086.0,0.05680906]
[1767458378274,0.01110001,90090.0,90086.0,0.0111005]
[1767458378467,0.01110001,90090.0,90086.0,0.05680906]
[1767458379015,0.00819964,90092.0,90090.0,0.000999]
[1767458379410,0.00819964,90092.0,90088.0,0.05680881]
[1767458379970,0.01109988,90091.0,90088.0,0.01110025]
[1767458380200,0.01109988,90091.0,90087.0,0.0555019]
[1767458380982,0.01109988,90091.0,90088.0,0.01110025]
[1767458381185,0.01109988,90091.0,90086.0,0.0333005]
[1767458381527,0.01109988,90091.0,90087.0,0.01110038]
[1767458382165,0.01109988,90091.0,90087.0,0.05680894]
[1767458382369,0.01110001,90090.0,90086.0,0.0333005]
[1767458383422,0.01110001,90090.0,90087.0,0.04570856]
[1767458383791,0.01110001,90090.0,90086.0,0.0333005]
[1767458384112,0.01110001,90090.0,90086.0,0.07900906]
[1767458384725,0.01110001,90090.0,90086.0,0.0333005]
[1767458385146,0.00610001,90090.0,90086.0,0.0333005]
[1767458385303,0.00610001,90090.0,90087.0,0.04570856]
[1767458385508,0.00610001,90090.0,90086.0,0.0333005]
[1767458385731,0.00610001,90090.0,90087.0,0.04570856]
[1767458386129,0.00610001,90090.0,90086.0,0.0333005]
[1767458386298,0.00610001,90090.0,90087.0,0.04570856]
[1767458386922,0.00610001,90090.0,90086.0,0.0333005]
[1767458387125,0.00610001,90090.0,90087.0,0.04570856]
[1767458387573,0.00610001,90090.0,90086.0,0.0333005]
[1767458387716,0.00510101,90090.0,90086.0,0.0333005]
[1767458388066,0.00510101,90090.0,90087.0,0.04570856]
[1767458388293,0.00510101,90090.0,90087.0,0.01110038]
[1767458388491,0.01109988,90091.0,90088.0,0.04570856]
[1767458388707,0.00819964,90092.0,90089.0,0.01110013]
[1767458389057,0.00819964,90092.0,90090.0,0.04570856]
[1767458389266,0.00819964,90092.0,90089.0,0.01110013]
[1767458390273,0.00819964,90092.0,90090.0,0.04570856]
[1767458390451,0.01109951,90094.0,90090.0,0.04570856]
[1767458390645,0.01109951,90094.0,90089.0,0.01110013]
[1767458390845,0.01109964,90093.0,90089.0,0.01110013]
[1767458391071,0.01109964,90093.0,90089.0,0.05680869]
[1767458391272,0.01109964,90093.0,90089.0,0.01110013]
[1767458391569,0.01109964,90093.0,90090.0,0.04570856]
[1767458392039,0.01109964,90093.0,90089.0,0.01110013]
[1767458392240,0.01109964,90093.0,90090.0,0.04570856]
[1767458392752,0.06659748,90094.0,90090.0,0.04570856]
[1767458392953,0.01109964,90093.0,90089.0,0.01110013]
[1767458393670,0.01109964,90093.0,90090.0,0.04570856]
[1767458393883,0.06659748,90094.0,90093.0,0.04570856]
[1767458394088,0.000999,90093.0,90089.0,0.01110013]
[1767458394285,0.06659748,90094.0,90089.0,0.05680869]
[1767458394661,0.01109964,90093.0,90088.0,0.06660112]
[1767458394866,0.01109976,90092.0,90089.0,0.04570856]
[1767458395163,0.01109976,90092.0,90089.0,0.04470956]
[1767458395380,0.01109976,90092.0,90087.0,0.06560348]
[1767458395608,0.01109976,90092.0,90088.0,0.04570856]
[1767458396062,0.01109976,90092.0,90088.0,0.01110025]
[1767458396309,0.01109976,90092.0,90088.0,0.05680881]
[1767458396499,0.01109964,90093.0,90089.0,0.01110013]
[1767458396854,0.01109964,90093.0,90089.0,0.05680869]
[1767458397139,0.01109964,90093.0,90089.0,0.01110013]
[1767458397481,0.01109964,90093.0,90090.0,0.04570856]
[1767458397683,0.01109964,90093.0,90089.0,0.01110013]
[1767458398332,0.01109964,90093.0,90090.0,0.04570856]
[1767458398484,0.01109964,90093.0,90089.0,0.01110013]
[1767458398926,0.01109964,90093.0,90090.0,0.04570856]
[1767458399101,0.01109964,90093.0,90089.0,0.01110013]
[1767458399278,0.01109964,90093.0,90089.0,0.05680869]
[1767458399647,0.01109964,90093.0,90090.0,0.04570856]
[1767458400224,0.06659748,90094.0,90090.0,0.04570856]
[1767458400225,0.01109951,90094.0,90090.0,0.04570856]
[1767458400441,0.05549737,90095.0,90090.0,0.04570856]
[1767458400643,0.01109964,90093.0,90090.0,0.01110001]
[1767458400846,0.01109964,90093.0,90091.0,0.04566747]
[1767458401055,0.01109964,90093.0,90090.0,0.01110001]
[1767458401260,0.01109927,90096.0,90091.0,0.01109988]
[1767458401464,0.0018411,90106.0,90101.0,0.01109865]
[1767458401625,1e-08,90106.0,90101.0,0.05676612]
[1767458401828,1e-08,90106.0,90104.0,0.05549143]
[1767458402230,1e-08,90106.0,90103.0,0.0110984]
[1767458402480,0.05549143,90104.0,90102.0,0.0222]
[1767458402684,1e-08,90106.0,90104.0,0.000999]
[1767458402856,0.05549079,90106.0,90104.0,0.000999]
[1767458403178,0.05549079,90106.0,90102.0,0.0222]
[1767458403179,0.01109816,90105.0,90102.0,0.0222]
[1767458403384,0.06658949,90105.0,90102.0,0.0222]
[1767458403996,0.05549196,90104.0,90102.0,0.0222]
[1767458405076,0.01109853,90102.0,90100.0,0.0222]
[1767458405273,0.01009953,90102.0,90100.0,0.0222]
[1767458405680,0.06659024,90104.0,90100.0,0.0222]
[1767458405886,0.01109828,90104.0,90100.0,0.0222]
[1767458406815,0.01109828,90104.0,90101.0,0.01109865]
[1767458407008,0.000999,90101.0,90100.0,0.0222]
[1767458407157,0.0110984,90103.0,90100.0,0.0222]
[1767458407365,0.066591,90103.0,90100.0,0.0222]
[1767458408062,0.05549271,90102.0,90100.0,0.0222]
[1767458408319,0.0110984,90103.0,90100.0,0.021201]
[1767458408796,0.0110984,90103.0,90100.0,0.05856649]
[1767458408992,0.05549317,90102.0,90100.0,0.01289902]
[1767458409924,0.011057,90103.0,90100.0,0.01289902]
[1767458410250,0.011057,90103.0,90102.0,0.000999]
[1767458410381,0.011057,90103.0,90100.0,0.02399779]
[1767458411921,0.06654917,90103.0,90100.0,0.01289902]
[1767458412710,0.05549308,90102.0,90100.0,0.00173752]
[1767458413938,0.01109865,90101.0,90098.0,0.04566747]
[1767458414142,0.01109865,90101.0,90099.0,0.0222]
[1767458415196,0.0110989,90099.0,90097.0,0.0222]
[1767458415473,0.01109877,90100.0,90097.0,0.03329914]
[1767458415670,0.01109877,90100.0,90098.0,0.04566747]
[1767458415879,0.04449451,90099.0,90097.0,0.0222]
[1767458416379,0.04449451,90099.0,90097.0,0.06786747]
[1767458416556,0.04449451,90099.0,90097.0,0.0222]
[1767458416755,0.01109902,90098.0,90096.0,0.0222]
[1767458417078,0.01109902,90098.0,90097.0,0.04566747]
[1767458417288,0.01109902,90098.0,90096.0,0.0222]
[1767458418049,0.01109927,90096.0,90092.0,0.01109976]
[1767458418248,0.05549574,90097.0,90094.0,0.04566747]
[1767458418658,0.01109914,90097.0,90093.0,0.03329964]
[1767458418969,0.06659537,90097.0,90094.0,0.04566747]
[1767458419169,0.06659537,90097.0,90093.0,0.0222]
[1767458419170,0.01109927,90096.0,90093.0,0.0222]
[1767458419773,0.01109927,90096.0,90094.0,0.04566747]
[1767458419974,0.01109927,90096.0,90093.0,0.03329964]
[1767458420213,0.06659562,90096.0,90092.0,0.04566747]
[1767458420411,0.06659687,90095.0,90093.0,0.021201]
[1767458420979,0.06659687,90095.0,90094.0,0.04566747]
[1767458421409,0.06659687,90095.0,90093.0,0.021201]
[1767458421780,0.01109927,90096.0,90094.0,0.04566747]
[1767458421975,0.01109927,90096.0,90093.0,0.03230064]
[1767458422214,0.01097035,90097.0,90093.0,0.03230064]
[1767458422933,4.738e-05,90096.0,90093.0,0.02399665]
[1767458423707,0.06261236,90098.0,90093.0,0.02399665]
[1767458423908,0.01109914,90097.0,90093.0,0.02399665]
[1767458424508,0.01109914,90097.0,90094.0,0.01109951]
[1767458425041,0.01100845,90097.0,90094.0,0.01109951]
[1767458425591,0.00711675,90098.0,90095.0,0.01109939]
[1767458425989,0.0665914,90102.0,90095.0,0.01109939]
[1767458426229,0.05549379,90101.0,90095.0,0.01109939]
[1767458426637,0.0110989,90099.0,90095.0,0.01109939]
[1767458426849,0.01101115,90099.0,90095.0,0.01109939]
[1767458428278,0.01101115,90099.0,90095.0,0.05676686]
[1767458428467,0.01101115,90099.0,90095.0,0.01109939]
[1767458429015,0.01109877,90100.0,90096.0,0.05676674]
[1767458429164,0.01109877,90100.0,90099.0,0.000999]
[1767458429367,0.01109877,90100.0,90096.0,0.05676674]
[1767458429368,0.01109877,90100.0,90096.0,0.01109927]
[1767458429986,0.01109877,90100.0,90096.0,0.05664556]
[1767458430320,0.01109877,90100.0,90097.0,0.04554629]
[1767458430468,0.06659305,90100.0,90097.0,0.04554629]
[1767458430664,0.06659305,90100.0,90096.0,0.01109927]
[1767458430873,0.06659305,90100.0,90096.0,0.05620662]
[1767458431259,0.05959305,90100.0,90096.0,0.05620662]
[1767458431455,0.05549428,90100.0,90097.0,0.04510735]
[1767458431821,0.06659305,90100.0,90097.0,0.04510735]
[1767458432033,0.06659305,90100.0,90096.0,0.01109927]
[1767458432187,0.06659305,90100.0,90097.0,0.04510735]
[1767458432827,0.01109877,90100.0,90096.0,0.0665951]
[1767458433027,0.01109877,90100.0,90097.0,0.05620649]
[1767458433452,0.01109877,90100.0,90097.0,0.01109914]
[1767458433590,0.01109877,90100.0,90098.0,0.04510735]
[1767458434028,0.01109877,90100.0,90097.0,0.01109914]
[1767458434405,0.01109877,90100.0,90098.0,0.04510735]
[1767458434607,0.01109877,90100.0,90097.0,0.01109914]
[1767458435006,0.01109877,90100.0,90097.0,0.05620649]
[1767458435408,0.05549379,90101.0,90100.0,0.000999]
[1767458436010,0.05549379,90101.0,90098.0,0.01109902]
[1767458436412,0.05549379,90101.0,90098.0,0.05620637]
[1767458436617,0.05549379,90101.0,90098.0,0.01109902]
[1767458436811,0.05549379,90101.0,90099.0,0.04510735]
[1767458437006,0.05549379,90101.0,90099.0,0.03680589]
[1767458437230,0.06379525,90101.0,90097.0,0.01109914]
[1767458437434,0.05549379,90101.0,90097.0,0.01109914]
[1767458437609,0.05549379,90101.0,90097.0,0.05620649]
[1767458437814,0.05549379,90101.0,90098.0,0.01109902]
[1767458438032,0.06659244,90101.0,90096.0,0.01109927]
[1767458438234,0.06659244,90101.0,90097.0,0.01109914]
[1767458438622,0.01109853,90102.0,90098.0,0.01109902]
[1767458438828,0.01109853,90102.0,90101.0,0.000999]
[1767458439028,0.00509853,90102.0,90099.0,0.05620625]
[1767458439433,0.05549177,90104.0,90100.0,0.01109877]
[1767458439637,0.01109805,90106.0,90102.0,0.04510735]
[1767458439835,0.01109805,90106.0,90101.0,0.06659175]
[1767458439836,1e-08,90106.0,90104.0,0.04610635]
[1767458440043,0.22194514,90113.0,90104.0,0.04610635]
[1767458440044,0.01109643,90119.0,90110.0,0.01109754]
[1767458440289,0.01109643,90119.0,90114.0,0.04510735]
[1767458440290,0.02149469,90116.0,90114.0,0.04510735]
[1767458440604,0.01351838,90117.0,90114.0,0.04510735]
[1767458440739,0.0103964,90116.0,90113.0,0.01109717]
[1767458440936,0.01351838,90117.0,90114.0,0.04510735]
[1767458441178,0.05548404,90116.0,90114.0,0.04510735]
[1767458441399,0.06658204,90115.0,90110.0,0.01109754]
[1767458441555,0.06658204,90115.0,90111.0,0.04510735]
[1767458441974,0.06658287,90114.0,90111.0,0.04510735]
[1767458442181,0.01109742,90111.0,90107.0,0.01109791]
[1767458442421,0.01109742,90111.0,90108.0,0.04510735]
[1767458442618,0.01109767,90109.0,90101.0,0.07769323]
[1767458443007,0.01109828,90104.0,90101.0,0.078406]
[1767458443204,0.0110984,90103.0,90099.0,0.0110989]
[1767458443571,0.01109828,90104.0,90103.0,0.000999]
[1767458443890,0.01109828,90104.0,90100.0,0.01109877]
[1767458444091,0.01109828,90104.0,90099.0,0.0110989]
[1767458444291,0.01109828,90104.0,90100.0,0.04510735]
[1767458444701,0.01109828,90104.0,90099.0,0.0110989]
[1767458444899,0.01109828,90104.0,90100.0,0.01109877]
[1767458445122,0.01109828,90104.0,90100.0,0.05620612]
[1767458445326,0.01109828,90104.0,90100.0,0.06659266]
[1767458445701,0.01109828,90104.0,90100.0,0.04510735]
[1767458445850,0.01109828,90104.0,90100.0,0.05620612]
[1767458446055,0.01109828,90104.0,90101.0,0.04510735]
[1767458446775,0.06368766,90105.0,90101.0,0.04510735]
[1767458447357,0.06368766,90105.0,90100.0,0.01109877]
[1767458447728,0.06368766,90105.0,90100.0,0.05620612]
[1767458447853,0.01109828,90104.0,90100.0,0.01109877]
[1767458448050,0.01109828,90104.0,90100.0,0.05620612]
[1767458448410,0.01109828,90104.0,90100.0,0.01109877]
[1767458448770,0.01109828,90104.0,90100.0,0.05620612]
[1767458449091,0.0110984,90103.0,90099.0,0.0110989]
[1767458449644,0.0110984,90103.0,90100.0,0.04510735]
[1767458449790,0.0110984,90103.0,90099.0,0.0110989]
[1767458450055,0.01109742,90111.0,90098.0,0.04510735]
[1767458450198,0.01109853,90102.0,90097.0,0.11170217]
[1767458450400,0.01109853,90102.0,90099.0,0.0110989]
[1767458450600,0.01109853,90102.0,90097.0,0.06659482]
[1767458450802,0.01109853,90102.0,90098.0,0.04510735]
[1767458451045,0.01109853,90102.0,90097.0,0.06659482]
[1767458451280,0.01109853,90102.0,90098.0,0.04510735]
[1767458451639,0.01109853,90102.0,90097.0,0.06659482]
[1767458451840,0.01109853,90102.0,90099.0,0.0110989]
[1767458452672,0.01109828,90104.0,90102.0,0.000999]
[1767458452873,0.01109816,90105.0,90102.0,0.00095183]
[1767458453120,0.04808091,90105.0,90100.0,0.0554933]
[1767458453276,0.01109791,90107.0,90103.0,0.0110984]
[1767458453874,0.01109791,90107.0,90102.0,0.04510735]
[1767458454076,0.01109791,90107.0,90104.0,0.01109828]
[1767458454417,0.01109791,90107.0,90104.0,0.00478015]
[1767458454600,0.01109791,90107.0,90104.0,0.0498875]
[1767458454959,0.01109791,90107.0,90104.0,0.00478015]
[1767458455163,0.0091957,90108.0,90104.0,0.00478015]
[1767458455581,0.01109742,90111.0,90105.0,0.05620551]
[1767458455748,0.01109742,90111.0,90108.0,0.000952]
[1767458455950,0.06658493,90111.0,90108.0,0.04605935]
[1767458456147,0.06658493,90111.0,90108.0,0.04510735]
[1767458456503,0.01109742,90111.0,90106.0,0.05548979]
[1767458456704,0.01109742,90111.0,90107.0,0.04510735]
[1767458456885,0.01109742,90111.0,90107.0,0.05620526]
[1767458457082,0.03329717,90113.0,90111.0,0.000952]
[1767458457288,0.03329717,90113.0,90109.0,0.05620502]
[1767458457482,0.03329717,90113.0,90110.0,0.01109754]
[1767458457908,0.03329717,90113.0,90111.0,0.04510735]
[1767458457909,0.0222,90113.0,90111.0,0.04510735]
[1767458458097,0.0222,90113.0,90110.0,0.01109754]
[1767458458500,0.0222,90113.0,90111.0,0.04510735]
[1767458458695,0.0222,90113.0,90110.0,0.05620489]
[1767458458899,0.0222,90113.0,90110.0,0.01109754]
[1767458459835,0.0222,90113.0,90111.0,0.0477559]
[1767458460044,0.0222,90113.0,90110.0,0.01109754]
[1767458460335,0.0222,90113.0,90110.0,0.05885344]
[1767458460786,0.0222,90113.0,90110.0,0.01109754]
[1767458461205,0.08878325,90113.0,90109.0,0.05885357]
[1767458461381,0.08878325,90113.0,90109.0,0.01109767]
[1767458461585,0.08878325,90113.0,90110.0,0.0477559]
[1767458461789,0.0110973,90112.0,90108.0,0.06653918]
[1767458462210,0.01658325,90113.0,90112.0,0.0487079]
[1767458462418,0.05548012,90123.0,90119.0,0.0477559]
[1767458462620,4.7e-05,90119.0,90115.0,0.01109693]
[1767458462854,0.0554809,90122.0,90115.0,0.01109693]
[1767458462855,0.01109606,90122.0,90119.0,0.01109643]
[1767458463005,0.05547929,90124.0,90122.0,0.000999]
[1767458463006,0.01109594,90123.0,90122.0,0.000999]
[1767458463171,0.11613314,90123.0,90118.0,0.01109656]
[1767458463378,0.02767218,90123.0,90118.0,0.01109656]
[1767458463616,0.000999,90118.0,90117.0,0.01109668]
[1767458464154,0.01109631,90120.0,90114.0,0.01109705]
[1767458464312,0.01109643,90119.0,90115.0,0.01109693]
[1767458464494,0.06065345,90119.0,90115.0,0.01109693]
[1767458464694,0.01109643,90119.0,90115.0,0.01109693]
[1767458465312,0.000999,90115.0,90112.0,0.0110973]
[1767458465728,0.0110968,90116.0,90112.0,0.0110973]
[1767458465921,0.06658136,90116.0,90112.0,0.0110973]
[1767458466128,0.01109693,90115.0,90112.0,0.0110973]
[1767458466453,0.01109693,90115.0,90111.0,0.01109742]
[1767458467220,0.06065395,90115.0,90111.0,0.01109742]
[1767458467577,0.000999,90111.0,90110.0,0.0222]
[1767458467922,0.01109693,90115.0,90111.0,0.06658454]
[1767458468129,0.0110968,90116.0,90112.0,0.0110973]
[1767458468338,0.05548308,90118.0,90113.0,0.01109717]
[1767458468516,0.01109619,90121.0,90115.0,0.01109693]
[1767458469122,0.04955702,90119.0,90117.0,0.01109668]
[1767458469327,0.01109631,90120.0,90116.0,0.0110968]
[1767458469578,0.01109631,90120.0,90117.0,0.01109668]
[1767458469881,0.04955702,90119.0,90116.0,0.0110968]
[1767458470178,0.000999,90117.0,90116.0,0.0110968]
[1767458470385,0.04955702,90119.0,90116.0,0.0110968]
[1767458470536,0.01109619,90121.0,90117.0,0.01109668]
[1767458470947,0.06657661,90122.0,90117.0,0.01109668]
[1767458471738,0.04955702,90121.0,90117.0,0.01109668]
[1767458471940,0.01109619,90121.0,90117.0,0.01109668]
[1767458472555,0.01109619,90121.0,90116.0,0.06658034]
[1767458472556,0.06065321,90121.0,90116.0,0.06658034]
[1767458472903,0.01109619,90121.0,90117.0,0.01109668]
[1767458473280,0.04955702,90120.0,90117.0,0.01109668]
[1767458473477,0.01109619,90121.0,90117.0,0.01109668]
[1767458473800,0.06657661,90122.0,90118.0,0.06657885]
[1767458473801,0.06065308,90122.0,90118.0,0.06657885]
[1767458474159,0.06657526,90124.0,90119.0,0.01109643]
[1767458474360,0.05547836,90126.0,90122.0,0.01109606]
[1767458474562,0.06065272,90125.0,90120.0,0.01109631]
[1767458474947,0.0110957,90125.0,90120.0,0.01109631]
[1767458475142,0.0110957,90125.0,90119.0,0.06657841]
[1767458475143,0.06657463,90125.0,90119.0,0.01109643]
[1767458475348,0.06065284,90124.0,90119.0,0.01095298]
[1767458475603,0.01109582,90124.0,90120.0,0.01109631]
[1767458475781,0.01109594,90123.0,90120.0,0.01109631]
[1767458476152,0.05548144,90121.0,90116.0,0.06658077]
[1767458476322,0.01109619,90121.0,90117.0,0.03409704]
[1767458476586,0.01109619,90121.0,90117.0,0.01109668]
[1767458476780,0.04955702,90120.0,90117.0,0.01109668]
[1767458477077,0.06657756,90121.0,90117.0,0.01109668]
[1767458477455,0.04955702,90120.0,90117.0,0.01109668]
[1767458477774,0.06657756,90121.0,90117.0,0.01109668]
[1767458477975,0.06657832,90120.0,90116.0,0.0110968]
[1767458478278,0.06567564,90119.0,90113.0,0.01109717]
[1767458478420,0.01109717,90113.0,90110.0,0.0222]
[1767458478633,0.04955702,90112.0,90110.0,0.0222]
[1767458478844,0.01109717,90113.0,90110.0,0.0222]
[1767458479043,0.05548465,90115.0,90110.0,0.0222]
[1767458479305,0.06658158,90115.0,90110.0,0.03329754]
[1767458480071,0.04955702,90114.0,90110.0,0.03329754]
[1767458480280,0.06658158,90115.0,90110.0,0.03329754]
[1767458480686,0.04955702,90114.0,90110.0,0.03329754]
[1767458481054,0.06658158,90115.0,90110.0,0.03329754]
[1767458481257,0.06658119,90116.0,90112.0,0.0110973]
[1767458481465,0.04955702,90114.0,90111.0,0.05548671]
[1767458481667,0.06657832,90120.0,90114.0,0.01209605]
[1767458481881,0.06657832,90120.0,90114.0,0.01109705]
[1767458482059,0.04955702,90119.0,90114.0,0.01109705]
[1767458482389,0.04955702,90117.0,90113.0,0.05548588]
[1767458482566,0.01109643,90119.0,90113.0,0.05548588]
[1767458482724,0.04955702,90118.0,90113.0,0.05548588]
[1767458482928,0.01109656,90118.0,90114.0,0.01109705]
[1767458483154,0.0110968,90116.0,90113.0,0.01109717]
[1767458483518,0.01109656,90118.0,90113.0,0.0665825]
[1767458484717,0.04955702,90117.0,90113.0,0.0665825]
[1767458484892,0.04955702,90117.0,90114.0,0.01109705]
[1767458485099,0.01109656,90118.0,90114.0,0.01109705]
[1767458485299,0.04955702,90117.0,90113.0,0.0165825]
[1767458485499,0.01109656,90118.0,90113.0,0.0165825]
[1767458485847,0.01109668,90117.0,90114.0,0.01109705]
[1767458485974,0.04955702,90117.0,90112.0,0.06658376]
[1767458486385,0.01109668,90117.0,90113.0,0.01109717]
[1767458486588,0.06657979,90118.0,90113.0,0.01109717]
[1767458486799,0.0110968,90116.0,90113.0,0.01009817]
[1767458487016,0.01109668,90117.0,90114.0,0.01109705]
[1767458487393,0.01109656,90118.0,90114.0,0.01109705]
[1767458487630,0.01109656,90118.0,90114.0,0.05885295]
[1767458487839,0.01109656,90118.0,90114.0,0.01109705]
[1767458488259,0.000149,90129.0,90114.0,0.05885295]
[1767458488416,0.04955702,90125.0,90118.0,0.01209556]
[1767458488633,0.04955702,90125.0,90121.0,0.0665329]
[1767458488851,0.04955702,90125.0,90118.0,0.01095311]
[1767458488852,0.0110957,90125.0,90118.0,0.01095311]
[1767458489056,0.0110957,90125.0,90118.0,0.01109656]
[1767458489251,0.04955702,90123.0,90118.0,0.01109656]
[1767458489453,0.01109619,90121.0,90115.0,0.06658113]
[1767458489654,0.01109631,90120.0,90116.0,0.0110968]
[1767458489878,0.01109631,90120.0,90115.0,0.06658114]
[1767458489879,0.01109643,90119.0,90115.0,0.01109693]
[1767458490093,0.01109631,90120.0,90116.0,0.0110968]
[1767458490668,0.01109643,90119.0,90115.0,0.01109693]
[1767458491056,0.01109668,90117.0,90112.0,0.0110973]
[1767458491261,0.0110968,90116.0,90112.0,0.0110973]
[1767458491471,0.01109705,90114.0,90110.0,0.0222]
[1767458492243,0.01109705,90114.0,90110.0,0.03329754]
[1767458492435,0.01109693,90115.0,90111.0,0.01109742]
[1767458492651,0.01109705,90114.0,90110.0,0.03329754]
[1767458493606,0.01109705,90114.0,90111.0,0.01109742]
[1767458493992,0.00619398,90115.0,90111.0,0.01109742]
[1767458494325,0.06658127,90116.0,90112.0,0.0665838]
[1767458494946,0.0110968,90116.0,90112.0,0.0665838]
[1767458495193,0.0110968,90116.0,90113.0,0.01109717]
[1767458496160,0.0110968,90116.0,90112.0,0.0110973]
[1767458496366,0.000999,90113.0,90112.0,0.0110973]
[1767458496854,0.01109693,90115.0,90112.0,0.0110973]
[1767458497258,0.06658167,90115.0,90111.0,0.01109742]
[1767458497965,0.06658167,90115.0,90111.0,0.01009842]
[1767458499396,0.01109693,90115.0,90112.0,0.0110973]
[1767458499578,0.06658046,90117.0,90115.0,0.000999]
[1767458499782,0.06658046,90117.0,90115.0,0.00025048]
[1767458500139,0.01109656,90118.0,90114.0,0.01109705]
[1767458500582,0.01109631,90120.0,90118.0,0.00025]
[1767458500806,0.06657833,90120.0,90118.0,0.00025]
[1767458501269,0.06657833,90120.0,90115.0,0.06658116]
[1767458501558,0.06657741,90121.0,90116.0,0.0110968]
[1767458501783,0.01109619,90121.0,90116.0,0.0110968]
[1767458502059,0.01109643,90119.0,90116.0,0.0110968]
[1767458503716,0.01109631,90120.0,90116.0,0.0110968]
[1767458504579,0.06657741,90121.0,90117.0,0.01109668]
[1767458504988,0.06657741,90121.0,90117.0,0.06657995]
[1767458505190,0.01109619,90121.0,90118.0,0.01109656]
[1767458505398,0.01084619,90121.0,90118.0,0.01109656]
[1767458507002,0.01084619,90121.0,90117.0,0.06657995]
[1767458507206,0.01109631,90120.0,90117.0,0.01109668]
[1767458507581,0.01084619,90121.0,90117.0,0.01109668]
[1767458508648,0.06632762,90121.0,90117.0,0.01109668]
[1767458509183,0.04332762,90121.0,90117.0,0.01109668]
[1767458509997,0.01109631,90120.0,90116.0,0.0110968]
[1767458510559,0.01109643,90119.0,90116.0,0.0110968]
[1767458510753,0.01109643,90119.0,90115.0,0.06658116]
[1767458512060,0.01109656,90118.0,90114.0,0.01109705]
[1767458514189,0.01109668,90117.0,90114.0,0.01109705]
[1767458515220,0.01109545,90127.0,90119.0,0.01109643]
[1767458515425,0.01109545,90127.0,90121.0,0.01109619]
[1767458515747,0.01109582,90124.0,90120.0,0.0222]
[1767458516159,0.0110957,90125.0,90120.0,0.0222]
[1767458516335,0.01109594,90123.0,90120.0,0.0222]
[1767458516558,0.05548034,90122.0,90120.0,0.0222]
[1767458516947,0.05248034,90122.0,90120.0,0.0222]
[1767458517385,0.0110968,90116.0,90113.0,0.01109717]
[1767458517589,0.0110968,90116.0,90112.0,0.0110973]
[1767458517590,0.01109693,90115.0,90112.0,0.0110973]
[1767458517793,0.01109717,90113.0,90106.0,0.31700224]
[1767458518042,0.01109717,90113.0,90108.0,0.01109779]
[1767458518242,0.01109717,90113.0,90109.0,0.0222]
[1767458518450,0.01109742,90111.0,90110.0,0.0222]
[1767458518656,0.01109717,90113.0,90110.0,0.0222]
[1767458518862,0.01109693,90115.0,90111.0,0.01109742]
[1767458519238,0.01109705,90114.0,90110.0,0.03329754]
[1767458519675,0.01109705,90114.0,90110.0,0.01109754]
[1767458519878,0.01109705,90114.0,90111.0,0.0222]
[1767458521035,0.01109668,90117.0,90112.0,0.0110973]
[1767458521978,0.0110968,90116.0,90112.0,0.0110973]
[1767458522190,0.01094007,90116.0,90112.0,0.0110973]
[1767458522636,0.01109668,90117.0,90113.0,0.01109717]
[1767458522843,0.01109619,90121.0,90113.0,0.01109717]
[1767458522844,0.01109631,90120.0,90115.0,0.01109693]
[1767458523299,0.01109631,90120.0,90116.0,0.0110968]
[1767458523530,0.06030027,90120.0,90116.0,0.0110968]
[1767458523747,0.01109631,90120.0,90116.0,0.0110968]
[1767458524664,0.06657836,90120.0,90115.0,0.01109693]
[1767458524989,0.01109631,90120.0,90116.0,0.0110968]
[1767458525335,0.01109619,90121.0,90117.0,0.01109668]
[1767458525484,0.01109619,90121.0,90118.0,0.0222]
[1767458525680,0.05548158,90120.0,90118.0,0.021201]
[1767458526090,0.05548158,90120.0,90118.0,0.02105753]
[1767458527142,0.05548158,90120.0,90118.0,0.02091408]
[1767458527877,0.01109619,90121.0,90118.0,0.02091408]
[1767458528211,0.04920396,90119.0,90118.0,0.01002555]
[1767458529030,0.05548158,90120.0,90118.0,0.01002555]
[1767458530280,0.06657772,90121.0,90118.0,0.01002555]
[1767458530432,0.01109619,90121.0,90118.0,0.01002555]
[1767458530636,0.05548158,90120.0,90118.0,0.01002555]
[1767458531221,0.01109619,90121.0,90118.0,0.01002555]
[1767458531423,0.11578154,90121.0,90118.0,0.01002555]
[1767458532385,0.04920396,90121.0,90118.0,0.02112211]
[1767458532732,0.04920396,90121.0,90118.0,0.01002555]
[1767458532949,0.01109606,90122.0,90118.0,0.02112211]
[1767458533369,0.01109619,90121.0,90118.0,0.02112211]
[1767458533577,0.01109619,90121.0,90118.0,0.01002555]
[1767458534155,0.05548158,90120.0,90118.0,0.01002555]
[1767458534357,0.05448258,90120.0,90118.0,0.01002555]
[1767458534553,0.01109619,90121.0,90118.0,0.01002555]
[1767458535394,0.0665777,90121.0,90118.0,0.01002555]
[1767458535597,0.11578166,90121.0,90118.0,0.01002555]
[1767458536577,0.04920396,90120.0,90118.0,0.01002555]
[1767458536776,0.0665777,90121.0,90118.0,0.01002555]
[1767458537180,0.04920396,90119.0,90118.0,0.01002555]
[1767458540067,0.08868615,90119.0,90118.0,0.01002555]
[1767458540207,0.0665777,90121.0,90118.0,0.01002555]
[1767458540412,0.11578166,90121.0,90118.0,0.01002555]
[1767458540951,0.11578166,90121.0,90118.0,0.0098821]
[1767458542645,0.11578166,90121.0,90118.0,0.00973867]